Workbook

Sheet Topics
A1: Highline Excel 2016 Class 04: References: Relative, Absolute, Mixed, Sheet, Workbook, 3-D, Table (24 Examples)
A3: Topics:
A4: 1 | B4: Relative Cell Reference
A5: 2 | B5: Absolute Cell Reference
A6: 3 | B6: Mixed Cell Reference with row locked cell reference (also known as row absolute, column relative)
A7: 4 | B7: Mixed Cell Reference with column locked cell reference (also known as column absolute, row relative)
A8: 5 | B8: Sheet Cell Reference
A9: 6 | B9: Workbook Cell Reference
A10: 7 | B10: 3-D cell reference
A11: 8 | B11: Defined Name
A12: 9 | B12: Table Formula Nomenclature (Structured References)
A14: Other Topics:
A15: 10 | B15: Finance and Cash Flow
A16: 11 | B16: Ratios and what they mean
A17: 12 | B17: Expandable Ranges and ROWS function for "Incrementing Numbers"

Sheet References
A1: When we copy a formula that contains cell references, we need to consider whether we need:
A2: Relative, Absolute, Mixed with the Column Locked or Mixed with the Row Locked.
A4: Example 1: Not Copying Formula. | N4: In Finance, Cash Flow is always the direction of the cash: In or Out of your wallet or purse:
A5: Goal: Calculate Net Income. | N5: Cash Flow Negative = Cash OUT of your wallet or purse.
A6: Month | B6: Jan | N6: Examples:
A7: Revenue | B7: 65487 | N7: When you put money into a bank or an investment.
A8: Expenses | B8: 52149 | N8: When you pay your mortgage.
A9: Net Income | B9: =B7-B8 -> 13338 | N9: When you pay your rent.
N10: Cash Flow Positive = Cash IN to your wallet or purse.
A11: Example 2: Not Copying Formula. | F11: **In Finance, Cash Flow is always the direction of the cash: In or Out of your wallet or purse) | N11: Examples:
A12: Goal: Estimate the Future Value of an Investment. | N12: When the bank receives cash.
A13: Amount | B13: 3500 | F13: Amount deposited each year (negative because out of your wallet/purse) | N13: When you receive a paycheck.
A14: Years | B14: 15 | F14: Number of years you make deposits | N14: When you receive a retirement payment.
A15: Annual Rate | B15: 0.045 | D15: Check: | F15: Annual interest rate investment is expected to earn
A16: Future Value | B16: =FV(B15,B14,-B13) -> 72744.19002 | D16: =B13*((1+B15)^B14-1)/B15 -> 72744.19002 | F16: ="Future Value = Estimate for how much it is worth in "&B14&" "&A14 -> Future Value = Estimate for how much it is worth in 15 Years | N16: FV arguments:
A17: Total Invested | B17: =B13*B14 -> 52500 | N17: rate = Period Rate (Year, Month, Day…). Same rate each period. If Rate is annual and you need monthly use Annual/12
A18: Total Interest | B18: =B16-B17 -> 20244.19002 | N18: nper = Total Number of Periods (Year, Month, Day…). Each period is exactly the same (equal time intervals). If time is given in years and you are making deposits monthly use Annual*12
N19: pmt = Equal payments each period. Amounts cannot change.
A21: Example 3: Relative Cell Reference.
A22: Goal: Calculate Net Income for each Month.
A23: Month | B23: Jan | C23: Feb | D23: Mar | E23: Apr | F23: May
A24: Revenue | B24: =B61 -> 65487 | C24: =C61 -> 75894 | D24: =D61 -> 65007 | E24: =E61 -> 95449 | F24: =F61 -> 99220
A25: Expenses | B25: =B61*SUM($B$72:$B$75) -> 55932.97201 | C25: =C61*SUM($B$72:$B$75) -> 64821.67419 | D25: 55523.00016 | E25: 81523.75656 | F25: 84744.59791
A26: Net Income | B26: =B24-B25 -> 9554.027988 | C26: =C24-C25 -> 11072.32581 | D26: 9483.999838 | E26: 13925.24344 | F26: =F24-F25 -> 14475.40209
A29: Example 4: Relative & Absolute Cell Reference.
A30: Goal: Estimate the Future Value of an Investment at different rates.
A31: Amount | B31: 3500
A32: Years | B32: 15
A34: Annual Rate | B34: Future Value | J34: Check:
A35: 0.03 | B35: =FV(A35,$B$32,-$B$31) -> 65096.1986 | J35: =$B$31*((1+A35)^$B$32-1)/A35 -> 65096.1986
A36: 0.04 | B36: =FV(A36,$B$32,-$B$31) -> 70082.55673 | J36: 70082.55673
A37: 0.05 | B37: 75524.97256 | J37: 75524.97256
A38: 0.06 | B38: 81465.8946 | J38: 81465.8946
A39: 0.07 | B39: 87951.57704 | J39: 87951.57704
A40: 0.08 | B40: =FV(A40,$B$32,-$B$31) -> 95032.39875 | J40: 95032.39875
A42: Example 5: Relative & Absolute Cell Reference.
A43: Goal: Calculate each Expense as a % of Revenue (Expense Ratios) to use in next year's Budget.
A45: Ave. of Last 5 Year's Income Statement: | E45: * When we do division or calculate a ratio, if you keep the units in both the numerator and denominator, and,
E46: keep a 1 in the denominator, the meaning of the ratio is revealed.
A47: Category | B47: Amounts | C47: % of Revenue | E47: * Each % tells us "how many pennies for each dollar that comes into cash register, goes to each category."
A48: Revenue | B48: 98758 | C48: =B48/$B$48 -> 1 | E48: * Once we calculate these % we can use them to make estimates for future periods (budgeting).
A49: Expenses: | E49: Meaning of each Ratio:
A50: COGS | B50: 45879 | C50: =B50/$B$48 -> 0.4645598331 | E50: =IF(ISNUMBER(C50),DOLLAR(B50,0)&" "&A50&"/"&DOLLAR($B$48,0)&" "&$A$48&" = "&DOLLAR(C50)&" "&A50&"/"&DOLLAR($C$48)&" "&$A$48&" = "&DOLLAR(C50)&" of "&A50&" for every "&DOLLAR($C$48)&" of "&$A$48,"") -> $45,879 COGS/$98,758 Revenue = $0.46 COGS/$1.00 Revenue = $0.46 of COGS for every $1.00 of Revenue
A51: Operating | B51: 19237 | C51: 0.1947892829 | E51: $19,237 Operating/$98,758 Revenue = $0.19 Operating/$1.00 Revenue = $0.19 of Operating for every $1.00 of Revenue
A52: Administrative | B52: 15247 | C52: 0.1543874927 | E52: $15,247 Administrative/$98,758 Revenue = $0.15 Administrative/$1.00 Revenue = $0.15 of Administrative for every $1.00 of Revenue
A53: Other | B53: 3987 | C53: 0.04037141295 | E53: $3,987 Other/$98,758 Revenue = $0.04 Other/$1.00 Revenue = $0.04 of Other for every $1.00 of Revenue
A54: Total Expenses | B54: =SUM(B50:B53) -> 84350 | C54: 0.8541080216 | E54: $84,350 Total Expenses/$98,758 Revenue = $0.85 Total Expenses/$1.00 Revenue = $0.85 of Total Expenses for every $1.00 of Revenue
A55: Net Income | B55: =B48-B54 -> 14408 | C55: 0.1458919784 | E55: $14,408 Net Income/$98,758 Revenue = $0.15 Net Income/$1.00 Revenue = $0.15 of Net Income for every $1.00 of Revenue
A58: Example 6: Mixed Cell References & Assumption Tables.
A59: Goal: Calculate Expenses for Budgeting Process.
A60: Month | B60: Jan | C60: Feb | D60: Mar | E60: Apr | F60: May
A61: =A48 -> Revenue | B61: 65487 | C61: 75894 | D61: 65007 | E61: 95449 | F61: 99220
A62: =A50 -> COGS | B62: =ROUND(B$61*$B72,2) -> 30422.63 | C62: 35257.3 | D62: 30199.64 | E62: 44341.77 | F62: 46093.63
A63: Operating | B63: 12756.17 | C63: 14783.34 | D63: 12662.67 | E63: 18592.44 | F63: 19326.99
A64: Administrative | B64: 10110.37 | C64: 11717.08 | D64: 10036.27 | E64: 14736.13 | F64: 15318.33
A65: Other | B65: 2643.8 | C65: 3063.95 | D65: 2624.42 | E65: 3853.41 | F65: 4005.65
A66: Total Expenses | B66: =SUM(B62:B65) -> 55932.97 | C66: =SUM(C62:C65) -> 64821.67 | D66: =SUM(D62:D65) -> 55523 | E66: =SUM(E62:E65) -> 81523.75 | F66: =SUM(F62:F65) -> 84744.6
A67: Net Income | B67: =B61-B66 -> 9554.03 | C67: =C61-C66 -> 11072.33 | D67: =D61-D66 -> 9484 | E67: =E61-E66 -> 13925.25 | F67: =F61-F66 -> 14475.4
A69: This Assumption Table can be used with Mixed Cell References because
A70: expenses in Assumption Table are oriented in the same direction as the formula table.
A71: Assumption Table (Formula Inputs):
A72: =A50 -> COGS | B72: =B50/$B$48 -> 0.4645598331 | D72: <<= Expenses are Vertical in Assumption Table & Vertical in Formula Table
A73: =A51 -> Operating | B73: =B51/$B$48 -> 0.1947892829 | D73: Horizontal / Horizontal works.
A74: =A52 -> Administrative | B74: =B52/$B$48 -> 0.1543874927 | D74: Vertical / Vertical works.
A75: =A53 -> Other | B75: =B53/$B$48 -> 0.04037141295 | D75: Horizontal / Vertical will NOT work.
A77: This Assumption Table can NOT be used with Mixed Cell References
A78: because expenses in Assumption Table are NOT oriented in the same direction as the formula table.
A79: Assumption Table (Formula Inputs):
A80: =TRANSPOSE(A72:B75) -> COGS | B80: Operating | C80: Administrative | D80: Other
A81: 0.4645598331 | B81: 0.1947892829 | C81: 0.1543874927 | D81: 0.04037141295
A83: Example 7: Relative & Mixed Cell Reference.
A84: Goal: Create "Common Sized Income Statement" for Accounting Report.
A86: **Called "Common Sized Income Statement" because when you calculate % you can compare to other % that represent numbers with different magnitudes.
B88: 4th Quarter Income Statement | E88: 4th Quarter Common Sized Income St.
B89: Oct | C89: Nov | D89: Dec | E89: Oct | F89: Nov | G89: Dec
A90: Revenue | B90: 100983.22 | C90: 165612.47 | D90: 233513.59 | E90: =B90/B$90 -> 1 | F90: 1 | G90: 1
A91: Expenses: | E91: 0 | F91: 0 | G91: 0
A92: COGS | B92: 44484.77 | C92: 74875.01 | D92: 86803.77 | E92: 0.4405164541 | F92: 0.4521097355 | G92: 0.3717289859
A93: Operating | B93: 19782.41 | C93: 28288.84 | D93: 43564.82 | E93: 0.1958979918 | F93: 0.1708134659 | G93: 0.1865622468
A94: Administrative | B94: 17438.66 | C94: 26158 | D94: 39237 | E94: 0.1726886903 | F94: 0.1579470435 | G94: 0.1680287644
A95: Other | B95: 4024.15 | C95: 6462.94 | D95: 8143.31 | E95: 0.03984968988 | F95: 0.03902447684 | G95: 0.03487295964
A96: Total Expenses | B96: =SUM(B92:B95) -> 85729.99 | C96: =SUM(C92:C95) -> 135784.79 | D96: 177748.9 | E96: 0.848952826 | F96: 0.8198947217 | G96: 0.7611929567
A97: Net Income | B97: =B90-B96 -> 15253.23 | C97: =C90-C96 -> 29827.68 | D97: 55764.69 | E97: 0.151047174 | F97: 0.1801052783 | G97: 0.2388070433
A100: Example 8: Mixed Cell References & Absolute Cell References..
A101: Goal: Estimate the Future Value of an Investment at different rates & length of investment.
A102: Amount | B102: 3500
A103: Start Rate | B103: 0.02
A104: Increment Rate | B104: 0.01
A105: Start Year | B105: 10
A106: Increment Year | B106: 5
A108: Future Value ($):
A109: Annual Rate/Years | B109: =B105 -> 10 | C109: =B109+$B$106 -> 15 | D109: 20 | E109: 25 | F109: 30 | G109: 35 | H109: 40 | I109: 45 | J109: 50
A110: =B103 -> 0.02 | B110: =FV($A110,B$109,-$B$102) -> 38324.0235 | C110: 60526.95921 | D110: 85040.7943 | E110: 112106.049 | F110: 141988.2772 | G110: 174980.6717 | H110: 211406.9411 | I110: 251624.4859 | J110: 296027.9051
A111: =A110+$B$104 -> 0.03 | B111: 40123.57759 | C111: 65096.1986 | D111: 94046.31071 | E111: 127607.4251 | F111: 166513.955 | G111: 211617.2863 | H111: 263904.4091 | I111: 324519.5149 | J111: 394789.0355
A112: 0.04 | B112: 42021.37493 | C112: 70082.55673 | D112: 104223.275 | E112: 145760.679 | F112: 196297.2821 | G112: 257782.787 | H112: 332589.3049 | I112: 423602.8721 | J112: 534334.7928
A113: 0.05 | B113: 44022.62387 | C113: 75524.97256 | D113: 115730.8394 | E113: 167044.8459 | F113: 232535.9663 | G113: 316121.0757 | H113: 422799.2098 | I113: 558950.5455 | J113: 732717.985
A114: 0.06 | B114: 46132.7823 | C114: 81465.8946 | D114: 128749.5692 | E114: 192025.792 | F114: 276703.6518 | G114: 390021.7296 | H114: 541666.8797 | I114: 744602.2983 | J114: 1016175.666
A115: 0.07 | B115: 48357.56786 | C115: 87951.57704 | D115: 143484.2231 | E115: 221371.632 | F115: 330612.7521 | G115: 483829.0742 | H115: 698722.892 | I115: 1000122.588 | J115: 1422851.253
A116: 0.08 | B116: 50702.96863 | C116: 95032.39875 | D116: 160166.875 | E116: 255870.7898 | F116: 396491.2389 | G116: 603108.8129 | H116: 906697.8155 | I116: 1352769.661 | J116: 2008195.547
A117: 0.09 | B117: 53175.25401 | C117: 102763.2068 | D117: 179060.4187 | E117: 296453.1368 | F117: 477076.3849 | G117: 754987.6413 | H117: 1182588.558 | I117: 1840505.571 | J117: 2852792.447
A118: 0.1 | B118: 55780.9861 | C118: 111203.6859 | D118: 200462.4982 | E118: 344214.708 | F118: 575729.0794 | G118: 948585.2897 | H118: 1549073.945 | I118: 2516166.929 | J118: 4073679.851
A121: Example 9: Mixed Cell References & Relative Cell References.
A122: Goal: Calculate Profit for each Markup Price Schedule
A123: Mortimer's Furniture Price Schedule
A124: Items | B124: Wholesale Cost | C124: Markup on Sell Price | F124: ="Profit at "&TEXT(C125,"0%") -> Profit at 50% | G124: ="Profit at "&TEXT(D125,"0%") -> Profit at 55% | H124: ="Profit at "&TEXT(E125,"0%") -> Profit at 60%
C125: =B141 -> 0.5 | D125: =C125+$B142 -> 0.55 | E125: =D125+$B142 -> 0.6
A126: =A135 -> Sofa | B126: 275 | C126: =ROUND($B126/(1-C$125),2) -> 550 | D126: 611.11 | E126: 687.5 | F126: =C126-$B126 -> 275 | G126: =D126-$B126 -> 336.11 | H126: 412.5
A127: Lamp | B127: 125 | C127: 250 | D127: 277.78 | E127: 312.5 | F127: =C127-$B127 -> 125 | G127: =D127-$B127 -> 152.78 | H127: =E127-$B127 -> 187.5
A128: End Table | B128: 225 | C128: 450 | D128: 500 | E128: 562.5 | F128: 225 | G128: 275 | H128: 337.5
A129: Chair | B129: 215 | C129: 430 | D129: 477.78 | E129: 537.5 | F129: 215 | G129: 262.78 | H129: 322.5
A130: Rug | B130: 425 | C130: 850 | D130: 944.44 | E130: 1062.5 | F130: 425 | G130: 519.44 | H130: 637.5
A131: Picture | B131: 100 | C131: 200 | D131: 222.22 | E131: 250 | F131: 100 | G131: 122.22 | H131: 150
A132: Totals | B132: =SUM(B126:B131) -> 1365 | C132: 2730 | D132: 3033.33 | E132: 3412.5 | F132: 1365 | G132: 1668.33 | H132: 2047.5
A134: Assumption Table (Formula Inputs)
A135: Sofa | B135: 275
A136: Lamp | B136: 125
A137: End Table | B137: 225
A138: Chair | B138: 215
A139: Rug | B139: 425
A140: Picture | B140: 100
A141: Markup on Sell Price | B141: 0.5
A142: Increment | B142: 0.05
A146: Example 10: Mixed Cell References & Relative Cell References in Expandable Range.
A147: Goal: Calculate Selling Price and Profit Margin based on different
A149: No. | B149: List Top 5: | D149: Points
A150: =ROWS(A$150:A150) -> 1 | B150: =LARGE($D$150:$D$158,ROWS(B$150:B150)) -> 99 | D150: 87
A151: =ROWS(A$150:A151) -> 2 | B151: =LARGE($D$150:$D$158,ROWS(B$150:B151)) -> 95 | D151: 95
A152: =ROWS(A$150:A152) -> 3 | B152: =LARGE($D$150:$D$158,ROWS(B$150:B152)) -> 87 | D152: 85
A153: =ROWS(A$150:A153) -> 4 | B153: =LARGE($D$150:$D$158,ROWS(B$150:B153)) -> 87 | D153: 62
A154: =ROWS(A$150:A154) -> 5 | B154: =LARGE($D$150:$D$158,ROWS(B$150:B154)) -> 85 | D154: 99
D155: 79
A156: ROWS Function is used to "Increment Numbers" | D156: 87
A157: or create Sequential Numbers like: 1, 2, 3, 4, 5 | D157: 67
D158: 58
A161: Example 11: Saving Formula Inputs with Scenario feature.
A162: Goal: Create different sets of assumptions for budget.
A163: Budget
A164: Account | B164: Jan | C164: Feb | D164: Mar | E164: Apr | F164: May | G164: Jun | H164: Total
A165: Revenue | B165: 1000 | C165: 1250 | D165: 1370 | E165: 1250 | F165: 2000 | G165: 2215 | H165: =SUM(B165:G165) -> 9085
A166: =A176 -> COGS | B166: =ROUND(B$165*$B176,2) -> 290 | C166: 362.5 | D166: 397.3 | E166: 362.5 | F166: 580 | G166: 642.35 | H166: 2634.65
A167: Office Expense | B167: 70 | C167: 87.5 | D167: 95.9 | E167: 87.5 | F167: 140 | G167: 155.05 | H167: 635.95
A168: Admin Expense | B168: 110 | C168: 137.5 | D168: 150.7 | E168: 137.5 | F168: 220 | G168: 243.65 | H168: 999.35
A169: Wage Expense | B169: 250 | C169: 312.5 | D169: 342.5 | E169: 312.5 | F169: 500 | G169: 553.75 | H169: 2271.25
A170: Other Expense | B170: 40 | C170: 50 | D170: 54.8 | E170: 50 | F170: 80 | G170: 88.6 | H170: 363.4
A171: Depreciation | B171: 120 | C171: 150 | D171: 164.4 | E171: 150 | F171: 240 | G171: 265.8 | H171: 1090.2
A172: Total Expenses | B172: =SUM(B166:B171) -> 880 | C172: 1100 | D172: 1205.6 | E172: 1100 | F172: 1760 | G172: 1949.2 | H172: 7994.8
A173: Net Income | B173: =B165-B172 -> 120 | C173: 150 | D173: 164.4 | E173: 150 | F173: 240 | G173: 265.8 | H173: 1090.2
A175: Assumptions - Formula Inputs
A176: COGS | B176: 0.29
A177: Office Expense | B177: 0.07 | D177: Scenario keyboard: Alt, T, E (old Alt keyboard from Excel 2003 and earlier)
A178: Admin Expense | B178: 0.11
A179: Wage Expense | B179: 0.25
A180: Other Expense | B180: 0.04
A181: Depreciation | B181: 0.12
A184: Example 12: Sheet Reference.
A185: Goal: Check if Schedule Of Accounts Receivable matches the AR Controlling Account.
A186: Schedule Of Accounts Receivable
A187: Name | B187: Amount
A188: Name1 | B188: 50
A189: Name2 | B189: 601
A190: Name3 | B190: 845
A191: Name4 | B191: 32
A192: Name5 | B192: 155
A193: Name6 | B193: 45
A194: Name7 | B194: 87 | D194: Sheet Reference:
A195: Name8 | B195: 22 | D195: 1) Type equal sign
A196: Total AR | B196: =SUM(B188:B195) -> 1837 | D196: 2) Click on sheet
D197: 3) click on cell on "clicked on sheet"
A198: Controlling Account Balance | B198: ='C AR'!A5 -> 1836 | D198: Don't click back on sheet with formula!!!
A199: Check to See If In Balance | B199: =B198=B196 -> FALSE | D199: 4) Hit Enter!!
A202: Example 13: Sheet Reference.
A203: Goal: Calculate Jan & Feb Commissions, when Commission Rates are on an Assumption Sheet.
A204: Jan Sales | B204: Feb Sales | C204: Jan Comm $ | D204: Feb Comm $
A205: 28463.4 | B205: 14231.7 | C205: =ROUND(A205*'Assumption Sheet'!A$2,2) -> 782.74 | D205: =ROUND(B205*'Assumption Sheet'!B$2,2) -> 466.09
A206: 33873.7 | B206: 45008.47 | C206: =ROUND(A206*'Assumption Sheet'!A$2,2) -> 931.53 | D206: =ROUND(B206*'Assumption Sheet'!B$2,2) -> 1474.03
A207: 6050.6 | B207: 19361.92 | C207: =ROUND(A207*'Assumption Sheet'!A$2,2) -> 166.39 | D207: =ROUND(B207*'Assumption Sheet'!B$2,2) -> 634.1
A208: 24665.4 | B208: 24397.72 | C208: =ROUND(A208*'Assumption Sheet'!A$2,2) -> 678.3 | D208: =ROUND(B208*'Assumption Sheet'!B$2,2) -> 799.03
A209: 17142.4 | B209: 19712.96 | C209: =ROUND(A209*'Assumption Sheet'!A$2,2) -> 471.42 | D209: =ROUND(B209*'Assumption Sheet'!B$2,2) -> 645.6
A210: 10748.8 | B210: 16123.2 | C210: =ROUND(A210*'Assumption Sheet'!A$2,2) -> 295.59 | D210: =ROUND(B210*'Assumption Sheet'!B$2,2) -> 528.03
A211: 2653.7 | B211: 3715.18 | C211: =ROUND(A211*'Assumption Sheet'!A$2,2) -> 72.98 | D211: =ROUND(B211*'Assumption Sheet'!B$2,2) -> 121.67
A212: 13052.6 | B212: 22463.06 | C212: =ROUND(A212*'Assumption Sheet'!A$2,2) -> 358.95 | D212: =ROUND(B212*'Assumption Sheet'!B$2,2) -> 735.67
A213: Total | C213: =SUM(C205:C212) -> 3757.9 | D213: =SUM(D205:D212) -> 5404.22
A216: Example 14: Workbook Reference.
A217: Goal: Access Net Income Number from External Workbook.
A219: June Revenue and Expenses | K219: Workbook Reference:
A220: Rev | B220: 10000 | K220: 1) Type equal sign
A221: E1 | B221: 500 | K221: 2) Click on Workbook
A222: E2 | B222: 654 | K222: 3) Click on sheet
A223: E3 | B223: 85 | K223: 4) click on cell on "clicked on sheet"
A224: E4 | B224: 958 | K224: 5) Hit Enter!!
A225: E5 | B225: 6522 | K225: Absolute Cell References are default, but you can change them.
A226: E6 | B226: 12 | K226: You can update, change, open source or break link: Data Ribbon Tab, Connections group, Edit Links
A228: June Net Income | B228: =B220-SUM(B221:B226) -> 1269
A229: May Net Income | B229: ='E:\[May Net Income.xlsx]May NI'!$B$10
A230: Change | B230: =B228-B229
A233: Example 15: 3-D References.
A234: Goal: Add numbers from across sheets that each contain an identical template for units.
A236: Corp Totals | H236: 3-D Reference
B237: Jan | C237: Feb | D237: Mar | E237: Apr | F237: Total | H237: 1) click on first sheet
A238: Quad | B238: =SUM(Oak:Tac!B3) -> 31 | C238: =SUM(Oak:Tac!C3) -> 25 | D238: =SUM(Oak:Tac!D3) -> 14 | E238: =SUM(Oak:Tac!E3) -> 17 | F238: =SUM(B238:E238) -> 87 | H238: 2) Click on cell or range
... 79 more rows

Sheet C AR
A1: Controlling AR Account
A2: DR | B2: CR
A3: 1682
A4: 154
A5: =SUM(A3:A4) -> 1836

Sheet Assumption Sheet
A1: Jan Commission Rate | B1: Feb Commission Rate
A2: 0.0275 | B2: 0.03275

Sheet Oak
A1: Oak Unit Totals
B2: Jan | C2: Feb | D2: Mar | E2: Apr | F2: Total
A3: Quad | B3: 14 | C3: 8 | D3: 0 | E3: 1 | F3: =SUM(B3:E3) -> 23
A4: Sunset | B4: 8 | C4: 8 | D4: 2 | E4: 11 | F4: 29
A5: Carlota | B5: 6 | C5: 6 | D5: 13 | E5: 7 | F5: 32
A6: Aspen | B6: 13 | C6: 12 | D6: 5 | E6: 2 | F6: 32
A7: Yanaki | B7: 9 | C7: 5 | D7: 10 | E7: 1 | F7: 25
A8: Tri-Fly | B8: 9 | C8: 3 | D8: 2 | E8: 12 | F8: 26
A9: Total | B9: =SUM(B3:B8) -> 59 | C9: =SUM(C3:C8) -> 42 | D9: =SUM(D3:D8) -> 32 | E9: =SUM(E3:E8) -> 34 | F9: 167

Sheet Sea
A1: Sea Unit Totals
B2: Jan | C2: Feb | D2: Mar | E2: Apr | F2: Total
A3: Quad | B3: 9 | C3: 3 | D3: 14 | E3: 9 | F3: =SUM(B3:E3) -> 35
A4: Sunset | B4: 0 | C4: 8 | D4: 13 | E4: 2 | F4: 23
A5: Carlota | B5: 13 | C5: 7 | D5: 2 | E5: 7 | F5: 29
A6: Aspen | B6: 1 | C6: 13 | D6: 3 | E6: 5 | F6: 22
A7: Yanaki | B7: 3 | C7: 12 | D7: 10 | E7: 11 | F7: 36
A8: Tri-Fly | B8: 3 | C8: 0 | D8: 2 | E8: 11 | F8: 16
A9: Total | B9: =SUM(B3:B8) -> 29 | C9: =SUM(C3:C8) -> 43 | D9: =SUM(D3:D8) -> 44 | E9: =SUM(E3:E8) -> 45 | F9: 161

Sheet Tac
A1: Tac Unit Totals
B2: Jan | C2: Feb | D2: Mar | E2: Apr | F2: Total
A3: Quad | B3: 8 | C3: 14 | D3: 0 | E3: 7 | F3: =SUM(B3:E3) -> 29
A4: Sunset | B4: 4 | C4: 13 | D4: 6 | E4: 14 | F4: 37
A5: Carlota | B5: 14 | C5: 2 | D5: 2 | E5: 6 | F5: 24
A6: Aspen | B6: 4 | C6: 8 | D6: 2 | E6: 0 | F6: 14
A7: Yanaki | B7: 6 | C7: 5 | D7: 7 | E7: 0 | F7: 18
A8: Tri-Fly | B8: 12 | C8: 5 | D8: 2 | E8: 5 | F8: 24
A9: Total | B9: =SUM(B3:B8) -> 48 | C9: =SUM(C3:C8) -> 47 | D9: =SUM(D3:D8) -> 19 | E9: =SUM(E3:E8) -> 32 | F9: 146

Sheet TFN on Diff Sheet
A1: Example 20: Table Formula Nomenclature from Different Sheet.
A2: Goal: Add Sales for each Product. Count Fields in Table.
B3: Product | C3: Sales | E3: Count Fields in Table
B4: Quad | C4: =SUMIFS(SalesTable[Sales],SalesTable[Product],B4) -> 3637 | E4: =COUNTA(SalesTable[#Headers]) -> 3
B5: Sunset | C5: =SUMIFS(SalesTable[Sales],SalesTable[Product],B5) -> 6186
B6: Yanaki | C6: =SUMIFS(SalesTable[Sales],SalesTable[Product],B6) -> 4747

Sheet Cash
A1: Account: | D1: Cash - BECU | G1: Account Number: | I1: 100
B2: Date | D2: Item | E2: Post. Ref. | F2: Debit | G2: Credit | H2: Balance
H3: Debit | I3: Credit
B4: 2014
B5: March | C5: 1900-01-01 | D5: Balance | E5: √ | F5: 14238.82 | H5: 14238.82
C6: 2014-03-31 | E6: CR 55 | F6: 37345.62 | H6: 51584.44
C7: 2014-03-31 | E7: CP 39 | G7: 32721.75 | H7: 18862.69

Sheet AR
A1: Account: | D1: Accounts Receivable | G1: Account Number: | I1: 120
B2: Date | D2: Item | E2: Post. Ref. | F2: Debit | G2: Credit | H2: Balance
H3: Debit | I3: Credit
B4: 2014
B5: March | C5: 1900-01-01 | D5: Balance | E5: √ | F5: 15398.35 | H5: 15398.35
C6: 2014-03-17 | E6: J 90 | G6: 27 | H6: 15371.35
C7: 2014-03-31 | E7: S 43 | F7: 45170 | H7: 60541.35
C8: 2014-03-31 | E8: CR 55 | G8: 33341.35 | H8: 27200

Sheet Homework==>>
B5: Homework sheets are to the RIGHT ==>> Names like: HW(1), HW(2) and so on…

Sheet HW(1)
B1: 1) Cell C5 has the formula for calculating Retail Selling Price based on Margin. Put the formula in cell C5 in edit mode and add the correct dollar signs to the cell references to enable you to copy the formula through the range C5:E10. 2) Create a formula in cell F5 that can be copied through the range F5:H10 that will increased each price in the range C5:E10 by 10%.
C3: Retail Selling Price by Margin
A4: Cost | B4: Items | C4: =C14 -> 0.45 | D4: =C4+$C15 -> 0.5 | E4: =D4+$C15 -> 0.55 | F4: New Price | G4: New Price | H4: New Price
A5: 598 | B5: Sofa | C5: =A5/(1-C4) -> 1087.272727
A6: 85 | B6: Head Lamp
A7: 152 | B7: Table
A8: 99 | B8: Chair
A9: 575 | B9: Dining Set
A10: 25 | B10: Picture
B12: Assumption Table
B13: Increase in Price | C13: 1.05
B14: =C3&" Starting Point" -> Retail Selling Price by Margin Starting Point | C14: 0.45
B15: Increment | C15: 0.05

Sheet HW(1an)
B1: 1) Cell C5 has the formula for calculating Retail Selling Price based on Margin. Put the formula in cell C5 in edit mode and add the correct dollar signs to the cell references to enable you to copy the formula through the range C5:E10. 2) Create a formula in cell F5 that can be copied through the range F5:H10 that will increased each price in the range C5:E10 by 10%.
C3: Retail Selling Price by Margin
A4: Cost | B4: Items | C4: =C14 -> 0.45 | D4: =C4+$C15 -> 0.5 | E4: =D4+$C15 -> 0.55 | F4: New Price | G4: New Price | H4: New Price
A5: 598 | B5: Sofa | C5: =$A5/(1-C$4) -> 1087.272727 | D5: 1196 | E5: 1328.888889 | F5: =C5*$C$13 -> 1196 | G5: =D5*$C$13 -> 1315.6 | H5: 1461.777778
A6: 85 | B6: Head Lamp | C6: 154.5454545 | D6: 170 | E6: 188.8888889 | F6: =C6*$C$13 -> 170 | G6: 187 | H6: 207.7777778
A7: 152 | B7: Table | C7: 276.3636364 | D7: 304 | E7: 337.7777778 | F7: 304 | G7: 334.4 | H7: 371.5555556
A8: 99 | B8: Chair | C8: 180 | D8: 198 | E8: 220 | F8: 198 | G8: 217.8 | H8: 242
A9: 575 | B9: Dining Set | C9: 1045.454545 | D9: 1150 | E9: 1277.777778 | F9: 1150 | G9: 1265 | H9: 1405.555556
A10: 25 | B10: Picture | C10: 45.45454545 | D10: 50 | E10: 55.55555556 | F10: 50 | G10: 55 | H10: 61.11111111
B12: Assumption Table
B13: Increase in Price | C13: 1.1
B14: =C3&" Starting Point" -> Retail Selling Price by Margin Starting Point | C14: 0.45
B15: Increment | C15: 0.05

Sheet HW(2)
A1: In the green cells, range D4:J12, create a formula in cell D4 that calculates the expenses as a percent of Income and then copy it through the range D4:J12.
B3: Month | C3: Income | D3: =D16 -> Expense 1 | E3: Expense 2 | F3: Expense 3 | G3: Expense 4 | H3: Expense 5 | I3: Expense 6 | J3: Expense 7 | K3: Total
B4: Jan | C4: 5000 | K4: =SUM(D4:J4) -> 0
B5: Feb | C5: 6000 | K5: 0
B6: Mar | C6: 7500 | K6: 0
B7: Apr | C7: 8000 | K7: 0
B8: May | C8: 8000 | K8: 0
B9: Jun | C9: 8000 | K9: 0
B10: Jul | C10: 10000 | K10: 0
B11: Aug | C11: 11000 | K11: 0
B12: Sep | C12: 15000 | K12: 0
C13: Total | D13: =SUM(D4:D12) -> 0 | E13: 0 | F13: 0 | G13: 0 | H13: 0 | I13: 0 | J13: 0 | K13: 0
A15: Assumptions (Formula Inputs) | D15: Assumptions (Formula Inputs)
A16: Expense 1 | B16: 0.1328 | D16: Expense 1 | E16: Expense 2 | F16: Expense 3 | G16: Expense 4 | H16: Expense 5 | I16: Expense 6 | J16: Expense 7
A17: Expense 2 | B17: 0.2927 | D17: 0.1328 | E17: 0.2927 | F17: 0.2397 | G17: 0.1955 | H17: 0.1215 | I17: 0.1412 | J17: 0.0708
A18: Expense 3 | B18: 0.2397
A19: Expense 4 | B19: 0.1955
A20: Expense 5 | B20: 0.1215
A21: Expense 6 | B21: 0.1412
A22: Expense 7 | B22: 0.0708

Sheet HW(2an)
A1: In the green cells, range D4:J12, create a formula in cell D4 that calculates the expenses as a percent of Income and then copy it through the range D4:J12.
B3: Month | C3: Income | D3: =D16 -> Expense 1 | E3: Expense 2 | F3: Expense 3 | G3: Expense 4 | H3: Expense 5 | I3: Expense 6 | J3: Expense 7 | K3: Total
B4: Jan | C4: 5000 | D4: =ROUND($C4*D$17,2) -> 664 | E4: 1463.5 | F4: 1198.5 | G4: 977.5 | H4: 607.5 | I4: 706 | J4: 354 | K4: =SUM(D4:J4) -> 5971
B5: Feb | C5: 6000 | D5: 796.8 | E5: 1756.2 | F5: 1438.2 | G5: 1173 | H5: 729 | I5: 847.2 | J5: 424.8 | K5: 7165.2
B6: Mar | C6: 7500 | D6: 996 | E6: 2195.25 | F6: 1797.75 | G6: 1466.25 | H6: 911.25 | I6: 1059 | J6: 531 | K6: 8956.5
B7: Apr | C7: 8000 | D7: 1062.4 | E7: 2341.6 | F7: 1917.6 | G7: 1564 | H7: 972 | I7: 1129.6 | J7: 566.4 | K7: 9553.6
B8: May | C8: 8000 | D8: 1062.4 | E8: 2341.6 | F8: 1917.6 | G8: 1564 | H8: 972 | I8: 1129.6 | J8: 566.4 | K8: 9553.6
B9: Jun | C9: 8000 | D9: 1062.4 | E9: 2341.6 | F9: 1917.6 | G9: 1564 | H9: 972 | I9: 1129.6 | J9: 566.4 | K9: 9553.6
B10: Jul | C10: 10000 | D10: 1328 | E10: 2927 | F10: 2397 | G10: 1955 | H10: 1215 | I10: 1412 | J10: 708 | K10: 11942
B11: Aug | C11: 11000 | D11: 1460.8 | E11: 3219.7 | F11: 2636.7 | G11: 2150.5 | H11: 1336.5 | I11: 1553.2 | J11: 778.8 | K11: 13136.2
B12: Sep | C12: 15000 | D12: 1992 | E12: 4390.5 | F12: 3595.5 | G12: 2932.5 | H12: 1822.5 | I12: 2118 | J12: 1062 | K12: 17913
C13: Total | D13: =SUM(D4:D12) -> 10424.8 | E13: 22976.95 | F13: 18816.45 | G13: 15346.75 | H13: 9537.75 | I13: 11084.2 | J13: 5557.8 | K13: 93744.7
A15: Assumptions (Formula Inputs) | D15: Assumptions (Formula Inputs)
A16: Expense 1 | B16: 0.1328 | D16: Expense 1 | E16: Expense 2 | F16: Expense 3 | G16: Expense 4 | H16: Expense 5 | I16: Expense 6 | J16: Expense 7
A17: Expense 2 | B17: 0.2927 | D17: 0.1328 | E17: 0.2927 | F17: 0.2397 | G17: 0.1955 | H17: 0.1215 | I17: 0.1412 | J17: 0.0708
A18: Expense 3 | B18: 0.2397
A19: Expense 4 | B19: 0.1955
A20: Expense 5 | B20: 0.1215
A21: Expense 6 | B21: 0.1412
A22: Expense 7 | B22: 0.0708

Sheet HW(3)
A1: 1) Create the formulas to complete the Projected Net Income Statement. Before you start creating formulas, analyze the setup and make adjustments if necessary to be efficient. (You can copy Assumption Table, and use the Paste Special Transpose feature to change the orientation of the table).
B3: Jan | C3: Feb | D3: Mar | E3: Apr | F3: May | G3: Jun
A4: Sales | B4: 100 | C4: 200 | D4: 300 | E4: 400 | F4: 500 | G4: 600
A5: Ex1
A6: Ex2
A7: Ex3
A8: Ex4
A9: Ex5
A10: Ex6
A11: Ex7
A12: Ex8
A13: Ex9
A14: Ex10
A15: Ex11
A16: Total Ex
A17: Net Income
A19: Ex1 | B19: Ex2 | C19: Ex3 | D19: Ex4 | E19: Ex5 | F19: Ex6 | G19: Ex7 | H19: Ex8 | I19: Ex9 | J19: Ex10 | K19: Ex11
A20: 0.03 | B20: 0.04 | C20: 0.05 | D20: 0.06 | E20: 0.07 | F20: 0.08 | G20: 0.09 | H20: 0.1 | I20: 0.11 | J20: 0.12 | K20: 0.13

Sheet HW(3an)
A1: 1) Create the formulas to complete the Projected Net Income Statement. Before you start creating formulas, analyze the setup and make adjustments if necessary to be efficient. (You can copy Assumption Table, and use the Paste Special Transpose feature to change the orientation of the table).
B3: Jan | C3: Feb | D3: Mar | E3: Apr | F3: May | G3: Jun
A4: Sales | B4: 100 | C4: 200 | D4: 300 | E4: 400 | F4: 500 | G4: 600 | I4: Assumptions
A5: Ex1 | B5: =B$4*$J5 -> 3 | C5: 6 | D5: 9 | E5: 12 | F5: 15 | G5: 18 | I5: Ex1 | J5: 0.03
A6: Ex2 | B6: 4 | C6: 8 | D6: 12 | E6: 16 | F6: 20 | G6: 24 | I6: Ex2 | J6: 0.04
A7: Ex3 | B7: 5 | C7: 10 | D7: 15 | E7: 20 | F7: 25 | G7: 30 | I7: Ex3 | J7: 0.05
A8: Ex4 | B8: 6 | C8: 12 | D8: 18 | E8: 24 | F8: 30 | G8: 36 | I8: Ex4 | J8: 0.06
A9: Ex5 | B9: 7 | C9: 14 | D9: 21 | E9: 28 | F9: 35 | G9: 42 | I9: Ex5 | J9: 0.07
A10: Ex6 | B10: 8 | C10: 16 | D10: 24 | E10: 32 | F10: 40 | G10: 48 | I10: Ex6 | J10: 0.08
A11: Ex7 | B11: 9 | C11: 18 | D11: 27 | E11: 36 | F11: 45 | G11: 54 | I11: Ex7 | J11: 0.09
A12: Ex8 | B12: 10 | C12: 20 | D12: 30 | E12: 40 | F12: 50 | G12: 60 | I12: Ex8 | J12: 0.1
A13: Ex9 | B13: 11 | C13: 22 | D13: 33 | E13: 44 | F13: 55 | G13: 66 | I13: Ex9 | J13: 0.11
A14: Ex10 | B14: 12 | C14: 24 | D14: 36 | E14: 48 | F14: 60 | G14: 72 | I14: Ex10 | J14: 0.12
A15: Ex11 | B15: 13 | C15: 26 | D15: 39 | E15: 52 | F15: 65 | G15: 78 | I15: Ex11 | J15: 0.13
A16: Total Ex | B16: =SUM(B5:B15) -> 88 | C16: =SUM(C5:C15) -> 176 | D16: 264 | E16: 352 | F16: 440 | G16: 528 | J16: =SUM(J5:J15) -> 0.88
A17: Net Income | B17: =B4-B16 -> 12 | C17: 24 | D17: 36 | E17: 48 | F17: 60 | G17: 72
I18: Check | J18: =G16/G4 -> 0.88

Sheet HW(4)
A1: In the green cells create the formulas for expenses, total expenses and net income. Then save the assumptions in a scenario and name it Set 1. Then create a second and third set of assumptions and save them as scenarios and name them set 2 and set 3.
B3: Jan | C3: Feb | D3: Mar | E3: Apr | F3: May | G3: Jun | I3: Assumptions | L3: Set 2 | N3: Set 3
A4: Sales | B4: 100 | C4: 200 | D4: 300 | E4: 400 | F4: 500 | G4: 600 | I4: Ex1 | J4: 0.03 | L4: 0.04 | N4: 0.02
A5: Ex1 | I5: Ex2 | J5: 0.04 | L5: 0.05 | N5: 0.03
A6: Ex2 | I6: Ex3 | J6: 0.05 | L6: 0.06 | N6: 0.04
A7: Ex3 | I7: Ex4 | J7: 0.06 | L7: 0.07 | N7: 0.05
A8: Ex4 | I8: Ex5 | J8: 0.07 | L8: 0.08 | N8: 0.06
A9: Ex5 | I9: Ex6 | J9: 0.08 | L9: 0.09 | N9: 0.07
A10: Ex6 | I10: Ex7 | J10: 0.09 | L10: 0.1 | N10: 0.08
A11: Ex7 | I11: Ex8 | J11: 0.1 | L11: 0.11 | N11: 0.09
A12: Ex8 | I12: Ex9 | J12: 0.11 | L12: 0.12 | N12: 0.1
A13: Ex9 | I13: Ex10 | J13: 0.12 | L13: 0.13 | N13: 0.11
A14: Ex10 | I14: Ex11 | J14: 0.13 | L14: 0.14 | N14: 0.12
A15: Ex11
A16: Total Ex
A17: Net Income

Sheet HW(4an)
A1: In the green cells create the formulas for expenses, total expenses and net income. Then save the assumptions in a scenario and name it Set 1. Then create a second and third set of assumptions and save them as scenarios and name them set 2 and set 3.
B3: Jan | C3: Feb | D3: Mar | E3: Apr | F3: May | G3: Jun | I3: Assumptions
A4: Sales | B4: 100 | C4: 200 | D4: 300 | E4: 400 | F4: 500 | G4: 600 | I4: Ex1 | J4: 0.04
A5: Ex1 | B5: =B$4*$J4 -> 4 | C5: 8 | D5: 12 | E5: 16 | F5: 20 | G5: 24 | I5: Ex2 | J5: 0.05
A6: Ex2 | B6: 5 | C6: 10 | D6: 15 | E6: 20 | F6: 25 | G6: 30 | I6: Ex3 | J6: 0.06
A7: Ex3 | B7: 6 | C7: 12 | D7: 18 | E7: 24 | F7: 30 | G7: 36 | I7: Ex4 | J7: 0.07
A8: Ex4 | B8: 7 | C8: 14 | D8: 21 | E8: 28 | F8: 35 | G8: 42 | I8: Ex5 | J8: 0.08
A9: Ex5 | B9: 8 | C9: 16 | D9: 24 | E9: 32 | F9: 40 | G9: 48 | I9: Ex6 | J9: 0.09
A10: Ex6 | B10: 9 | C10: 18 | D10: 27 | E10: 36 | F10: 45 | G10: 54 | I10: Ex7 | J10: 0.1
A11: Ex7 | B11: 10 | C11: 20 | D11: 30 | E11: 40 | F11: 50 | G11: 60 | I11: Ex8 | J11: 0.11
A12: Ex8 | B12: 11 | C12: 22 | D12: 33 | E12: 44 | F12: 55 | G12: 66 | I12: Ex9 | J12: 0.12
A13: Ex9 | B13: 12 | C13: 24 | D13: 36 | E13: 48 | F13: 60 | G13: 72 | I13: Ex10 | J13: 0.13
A14: Ex10 | B14: 13 | C14: 26 | D14: 39 | E14: 52 | F14: 65 | G14: 78 | I14: Ex11 | J14: 0.14
A15: Ex11 | B15: 14 | C15: 28 | D15: 42 | E15: 56 | F15: 70 | G15: 84
A16: Total Ex | B16: =SUM(B5:B15) -> 99 | C16: 198 | D16: 297 | E16: 396 | F16: 495 | G16: 594
A17: Net Income | B17: =B4-B16 -> 1 | C17: 2 | D17: 3 | E17: 4 | F17: 5 | G17: 6

Sheet HW(5)
A1: The projected revenue for Jan, Feb and Mar are $1000, $2000, and $2500 respectively. The projected expenses as a percentage of revenue for each month are: Rent = 25%, Operating Expenses = 35%, Administrative expenses = 10% and Miscellaneous expenses = 8.5%. Create a projected Income Statement and formatted it so it looks good.

Sheet HW(5an)
A1: The projected revenue for Jan, Feb and Mar are $1000, $2000, and $2500 respectively. The projected expenses as a percentage of revenue for each month are: Rent = 25%, Operating Expenses = 35%, Administrative expenses = 10% and Miscellaneous expenses = 8.5%. Create a projected Income Statement and formatted it so it looks good.
A4: Month | B4: Rev | C4: =C9 -> Rent | D4: Operating Expense | E4: Admin Expenses | F4: Misc. Expenses | G4: Total Expenses | H4: Net Income
A5: Jan | B5: 1000 | C5: =$B5*C$10 -> 250 | D5: 350 | E5: 100 | F5: 85 | G5: =SUM(C5:F5) -> 785 | H5: =B5-G5 -> 215
A6: Feb | B6: 2000 | C6: 500 | D6: 700 | E6: 200 | F6: 170 | G6: 1570 | H6: 430
A7: Mar | B7: 2500 | C7: 625 | D7: 875 | E7: 250 | F7: 212.5 | G7: 1962.5 | H7: 537.5
C9: Rent | D9: Operating Expense | E9: Admin Expenses | F9: Misc. Expenses
C10: 0.25 | D10: 0.35 | E10: 0.1 | F10: 0.085
A12: OR
B14: Jan | C14: Feb | D14: Mar
A15: Rev | B15: 1000 | C15: 2000 | D15: 2500
A16: =A23 -> Rent | B16: =B$15*$B23 -> 250 | C16: 500 | D16: 625
A17: =A24 -> Operating Expense | B17: 350 | C17: 700 | D17: 875
A18: =A25 -> Admin Expenses | B18: 100 | C18: 200 | D18: 250
A19: =A26 -> Misc. Expenses | B19: 85 | C19: 170 | D19: 212.5
A20: Total Expenses | B20: =SUM(B16:B19) -> 785 | C20: =SUM(C16:C19) -> 1570 | D20: =SUM(D16:D19) -> 1962.5
A21: Net Income | B21: =B15-B20 -> 215 | C21: =C15-C20 -> 430 | D21: =D15-D20 -> 537.5
A23: Rent | B23: 0.25
A24: Operating Expense | B24: 0.35
A25: Admin Expenses | B25: 0.1
A26: Misc. Expenses | B26: 0.085

Sheet HW(6)
A1: Create a formula in the Earned Commission column using the commission rate from the sheet named "AssumptionsFor6".
A4: SalesRep | B4: Sales | C4: Earned Commission
A5: Abraham | B5: 1161
A6: Hironobu | B6: 1321
A7: Daniel | B7: 1039
A8: Dante | B8: 1761
A9: Sarah B | B9: 1561
A10: Tonya | B10: 1868
A11: Janita | B11: 2787
A12: Debra | B12: 1849
A13: Tiara | B13: 2627
A14: Andrea | B14: 2165
A15: Faye | B15: 1589
A16: Viktor | B16: 2603
A17: Na | B17: 2366
A18: Ryan | B18: 2107
A19: Damir | B19: 2886
A20: Sunita | B20: 1886
A21: Meghan | B21: 2177
A22: Cynthia | B22: 1873
A23: Trevor | B23: 2164
A24: John | B24: 1394
A25: Sang | B25: 2263
A26: Dina | B26: 2242
A27: Tony | B27: 1474
A28: Nikolay | B28: 1998
A29: Thanh | B29: 2892
A30: Tracinda | B30: 1873
A31: Denis | B31: 1954
A32: Michael | B32: 1729
A33: Svitlana Q | B33: 1140
A34: Leslie | B34: 1528
A35: Sarah | B35: 1659
A36: Andra | B36: 2119
A37: Christien | B37: 1854
A38: Irina | B38: 2759
A39: Chandy | B39: 1237
A40: David | B40: 1653
A41: Wendy | B41: 2604
A42: Archie | B42: 1479
A43: Desiree | B43: 2569
A44: Denise | B44: 1941
A45: Hillary | B45: 2793
A46: Nicolas | B46: 2614
A47: Ralph | B47: 1645
A48: Konstanti | B48: 1733
A49: Svitlana | B49: 2466
A50: Ewelina | B50: 2833
A51: Jori | B51: 1604
A52: Abdullahi | B52: 2588

Sheet AssumptionsFor6
A1: Assumption Table contains Formula Inputs
A2: Commission Rate | B2: 0.04

Sheet HW(6an)
A1: Create a formula in the Earned Commission column using the commission rate from the sheet named "AssumptionsFor6".
A4: SalesRep | B4: Sales | C4: Earned Commission
A5: Abraham | B5: 1161 | C5: =B5*AssumptionsFor6!B$2 -> 46.44
A6: Hironobu | B6: 1321 | C6: =B6*AssumptionsFor6!B$2 -> 52.84
A7: Daniel | B7: 1039 | C7: =B7*AssumptionsFor6!B$2 -> 41.56
A8: Dante | B8: 1761 | C8: =B8*AssumptionsFor6!B$2 -> 70.44
A9: Sarah B | B9: 1561 | C9: =B9*AssumptionsFor6!B$2 -> 62.44
A10: Tonya | B10: 1868 | C10: =B10*AssumptionsFor6!B$2 -> 74.72
A11: Janita | B11: 2787 | C11: =B11*AssumptionsFor6!B$2 -> 111.48
A12: Debra | B12: 1849 | C12: =B12*AssumptionsFor6!B$2 -> 73.96
A13: Tiara | B13: 2627 | C13: =B13*AssumptionsFor6!B$2 -> 105.08
A14: Andrea | B14: 2165 | C14: =B14*AssumptionsFor6!B$2 -> 86.6
A15: Faye | B15: 1589 | C15: =B15*AssumptionsFor6!B$2 -> 63.56
A16: Viktor | B16: 2603 | C16: =B16*AssumptionsFor6!B$2 -> 104.12
A17: Na | B17: 2366 | C17: =B17*AssumptionsFor6!B$2 -> 94.64
A18: Ryan | B18: 2107 | C18: =B18*AssumptionsFor6!B$2 -> 84.28
A19: Damir | B19: 2886 | C19: =B19*AssumptionsFor6!B$2 -> 115.44
A20: Sunita | B20: 1886 | C20: =B20*AssumptionsFor6!B$2 -> 75.44
A21: Meghan | B21: 2177 | C21: =B21*AssumptionsFor6!B$2 -> 87.08
A22: Cynthia | B22: 1873 | C22: =B22*AssumptionsFor6!B$2 -> 74.92
A23: Trevor | B23: 2164 | C23: =B23*AssumptionsFor6!B$2 -> 86.56
A24: John | B24: 1394 | C24: =B24*AssumptionsFor6!B$2 -> 55.76
A25: Sang | B25: 2263 | C25: =B25*AssumptionsFor6!B$2 -> 90.52
A26: Dina | B26: 2242 | C26: =B26*AssumptionsFor6!B$2 -> 89.68
A27: Tony | B27: 1474 | C27: =B27*AssumptionsFor6!B$2 -> 58.96
A28: Nikolay | B28: 1998 | C28: =B28*AssumptionsFor6!B$2 -> 79.92
A29: Thanh | B29: 2892 | C29: =B29*AssumptionsFor6!B$2 -> 115.68
A30: Tracinda | B30: 1873 | C30: =B30*AssumptionsFor6!B$2 -> 74.92
A31: Denis | B31: 1954 | C31: =B31*AssumptionsFor6!B$2 -> 78.16
A32: Michael | B32: 1729 | C32: =B32*AssumptionsFor6!B$2 -> 69.16
A33: Svitlana Q | B33: 1140 | C33: =B33*AssumptionsFor6!B$2 -> 45.6
A34: Leslie | B34: 1528 | C34: =B34*AssumptionsFor6!B$2 -> 61.12
A35: Sarah | B35: 1659 | C35: =B35*AssumptionsFor6!B$2 -> 66.36
A36: Andra | B36: 2119 | C36: =B36*AssumptionsFor6!B$2 -> 84.76
A37: Christien | B37: 1854 | C37: =B37*AssumptionsFor6!B$2 -> 74.16
A38: Irina | B38: 2759 | C38: =B38*AssumptionsFor6!B$2 -> 110.36
A39: Chandy | B39: 1237 | C39: =B39*AssumptionsFor6!B$2 -> 49.48
A40: David | B40: 1653 | C40: =B40*AssumptionsFor6!B$2 -> 66.12
A41: Wendy | B41: 2604 | C41: =B41*AssumptionsFor6!B$2 -> 104.16
A42: Archie | B42: 1479 | C42: =B42*AssumptionsFor6!B$2 -> 59.16
A43: Desiree | B43: 2569 | C43: =B43*AssumptionsFor6!B$2 -> 102.76
A44: Denise | B44: 1941 | C44: =B44*AssumptionsFor6!B$2 -> 77.64
A45: Hillary | B45: 2793 | C45: =B45*AssumptionsFor6!B$2 -> 111.72
A46: Nicolas | B46: 2614 | C46: =B46*AssumptionsFor6!B$2 -> 104.56
A47: Ralph | B47: 1645 | C47: =B47*AssumptionsFor6!B$2 -> 65.8
A48: Konstanti | B48: 1733 | C48: =B48*AssumptionsFor6!B$2 -> 69.32
A49: Svitlana | B49: 2466 | C49: =B49*AssumptionsFor6!B$2 -> 98.64
A50: Ewelina | B50: 2833 | C50: =B50*AssumptionsFor6!B$2 -> 113.32
A51: Jori | B51: 1604 | C51: =B51*AssumptionsFor6!B$2 -> 64.16
A52: Abdullahi | B52: 2588 | C52: =B52*AssumptionsFor6!B$2 -> 103.52

Sheet HW(7)
A1: In the green cells, range B10:L25, create a formula in cell B10 that calculates the Future Value of a Bank CD where you deposit $4000 at the end of each year for various Annual Rates and Number of Total Years for the CD, and then copy it through the range B10:L25.
A3: Amount | B3: 4000 | D3: **Amount Deposited in Bank CD at the end of Year.
A4: Start Annual Rate | B4: 0.01
A5: Rate Increment | B5: 0.005
A6: Start No. Years | B6: 5
A7: Year Increment | B7: 1
A9: Number Years/ Annual Rate | B9: =B4 -> 0.01 | C9: =B9+$B5 -> 0.015 | D9: 0.02 | E9: 0.025 | F9: 0.03 | G9: 0.035 | H9: 0.04 | I9: 0.045 | J9: 0.05 | K9: 0.055 | L9: 0.06
A10: =B6 -> 5
A11: =A10+B$7 -> 6
A12: =A11+B$7 -> 7
A13: 8
A14: 9
A15: 10
A16: 11
A17: 12
A18: 13
A19: 14
A20: 15
A21: 16
A22: 17
A23: 18
A24: 19
A25: =A24+B$7 -> 20

Sheet HW(7an)
A1: In the green cells, range B10:L25, create a formula in cell B10 that calculates the Future Value of a Bank CD where you deposit $4000 at the end of each year for various Annual Rates and Number of Total Years for the CD, and then copy it through the range B10:L25.
A3: Amount | B3: 4000 | D3: **Amount Deposited in Bank CD at the end of Year.
A4: Start Annual Rate | B4: 0.01
A5: Rate Increment | B5: 0.005
A6: Start No. Years | B6: 5
A7: Year Increment | B7: 1
A9: Number Years/ Annual Rate | B9: =B4 -> 0.01 | C9: =B9+$B5 -> 0.015 | D9: 0.02 | E9: 0.025 | F9: 0.03 | G9: 0.035 | H9: 0.04 | I9: 0.045 | J9: 0.05 | K9: 0.055 | L9: 0.06
A10: =B6 -> 5 | B10: =FV(B$9,$A10,-$B$3) -> 20404.02004 | C10: 20609.0677 | D10: 20816.16064 | E10: 21025.31406 | F10: 21236.54324 | G10: 21449.8635 | H10: 21665.29024 | I10: 21882.8389 | J10: 22102.525 | K10: 22324.3641 | L10: 22548.37184
A11: =A10+B$7 -> 6 | B11: 24608.06024 | C11: 24918.20372 | D11: 25232.48385 | E11: 25550.94691 | F11: 25873.63954 | G11: 26200.60873 | H11: 26531.90185 | I11: 26867.56665 | J11: 27207.65125 | K11: 27552.20413 | L11: 27901.27415
A12: =A11+B$7 -> 7 | B12: 28854.14084 | C12: 29291.97677 | D12: 29737.13353 | E12: 30189.72059 | F12: 30649.84872 | G12: 31117.63003 | H12: 31593.17792 | I12: 32076.60715 | J12: 32568.03381 | K12: 33067.57536 | L12: 33575.3506
A13: 8 | B13: 33142.68225 | C13: 33731.35643 | D13: 34331.8762 | E13: 34944.4636 | F13: 35569.34419 | G13: 36206.74708 | H13: 36856.90504 | I13: 37520.05447 | J13: 38196.4355 | K13: 38886.292 | L13: 39589.87164
A14: 9 | B14: 37474.10907 | C14: 38237.32677 | D14: 39018.51372 | E14: 39818.07519 | F14: 40636.42451 | G14: 41473.98323 | H14: 42331.18124 | I14: 43208.45693 | J14: 44106.25728 | K14: 45025.03806 | L14: 45965.26393
A15: 10 | B15: 41848.85016 | C15: 42810.88667 | D15: 43798.884 | E15: 44813.52707 | F15: 45855.51725 | G15: 46925.57264 | H15: 48024.42849 | I15: 49152.83749 | J15: 50311.57014 | K15: 51501.41515 | L15: 52723.17977
A16: 11 | B16: 46267.33867 | C16: 47453.04997 | D16: 48674.86168 | E16: 49933.86525 | F16: 51231.18276 | G16: 52567.96768 | H16: 53945.40563 | I16: 55364.71517 | J16: 56827.14865 | K16: 58333.99299 | L16: 59886.57056
A17: 12 | B17: 50730.01205 | C17: 52164.84572 | D17: 53648.35891 | E17: 55182.21188 | F17: 56768.11825 | G17: 58407.84655 | H17: 60103.22186 | I17: 61856.12736 | J17: 63668.50608 | K17: 65542.3626 | L17: 67479.76479
A18: 13 | B18: 55237.31217 | C18: 56947.31841 | D18: 58721.32609 | E18: 60561.76718 | F18: 62471.16179 | G18: 64452.12118 | H18: 66507.35073 | I18: 68639.65309 | J18: 70851.93139 | K18: 73147.19254 | L18: 75528.55068
A19: 14 | B19: 59789.6853 | C19: 61801.52819 | D19: 63895.75261 | E19: 66075.81136 | F19: 68345.29665 | G19: 70707.94542 | H19: 73167.64476 | I19: 75728.43748 | J19: 78394.52796 | K19: 81170.28813 | L19: 84060.26372
A20: 15 | B20: 64387.58215 | C20: 66728.55111 | D20: 69173.66766 | E20: 71727.70664 | F20: 74395.65555 | G20: 77182.72351 | H20: 80094.35055 | I20: 83136.21716 | J20: 86314.25435 | K20: 89634.65398 | L20: 93103.87954
A21: 16 | B21: 69031.45797 | C21: 71729.47937 | D21: 74557.14102 | E21: 77520.89931 | F21: 80627.52521 | G21: 83884.11884 | H21: 87298.12457 | I21: 90877.34694 | J21: 94629.96707 | K21: 98564.55995 | L21: 102690.1123
A22: 17 | B22: 73721.77255 | C22: 76805.42157 | D22: 80048.28384 | E22: 83458.92179 | F22: 87046.35097 | G22: 90820.063 | H22: 94790.04956 | I22: 98966.82755 | J22: 103361.4654 | K22: 107985.6107 | L22: 112851.5191
A23: 18 | B23: 78458.99027 | C23: 81957.50289 | D23: 85649.24952 | E23: 89545.39483 | F23: 93657.7415 | G23: 97998.7652 | H23: 102581.6515 | I23: 107420.3348 | J23: 112529.5387 | K23: 117924.8193 | L23: 123622.6102
A24: 19 | B24: 83243.58018 | C24: 87186.86543 | D24: 91362.23451 | E24: 95784.0297 | F24: 100467.4737 | G24: 105428.722 | H24: 110684.9176 | I24: 116254.2499 | J24: 122156.0156 | K24: 128410.6844 | L24: 135039.9668
A25: =A24+B$7 -> 20 | B25: 88076.01598 | C25: 92494.66841 | D25: 97189.4792 | E25: 102178.6304 | F25: 107481.498 | G25: 113118.7273 | H25: 119112.3143 | I25: 125485.6911 | J25: 132263.8164 | K25: 139473.272 | L25: 147142.3648

Sheet HW(8)
A1: Create Defined Names for cells B3, B4 and B5 where B3 is named Amount, cell B4 is named Annual_Rate and B5 is named Years. Then in cell B6 calculate the Future Value for a bank CD that allows a deposit at the end of each year of $1,750, and an annual rate of 0.035 and a total number of years of 15. In cell B7 calculate the total amount deposited. In cell B8 calculate the total interest earned.
A3: AnswerAmount | B3: 1750 | D3: **Amount Deposited in Bank CD at the end of Year.
A4: AnswerAnnualRate | B4: 0.035
A5: AnswerYears | B5: 15
A6: Future Value
A7: Total Deposited
A8: Total Interest Earned

Sheet HW(8an)
A1: Create Defined Names for cells B3, B4 and B5 where B3 is named Amount, cell B4 is named Annual_Rate and B5 is named Years. Then in cell B6 calculate the Future Value for a bank CD that allows a deposit at the end of each year of $1,750, and an annual rate of 0.035 and a total number of years of 15. In cell B7 calculate the total amount deposited. In cell B8 calculate the total interest earned.
A3: AnswerAmount | B3: 1750 | D3: **Amount Deposited in Bank CD at the end of Year.
A4: AnswerAnnualRate | B4: 0.035
A5: AnswerYears | B5: 15
A6: Future Value | B6: =FV(AnswerAnnualRate,AnswerYears,-AnswerAmount) -> 33767.44154
A7: Total Deposited | B7: =AnswerYears*AnswerAmount -> 26250
A8: Total Interest Earned | B8: =B6-B7 -> 7517.441538

Sheet HW(9)
A1: In the cell C7, create a formula with the SUM function and a 3-D Cell Reference that will add all the Units Sold for each Sales Rep
A2: from the Sheets named "Sioux", "Tyrone", "Chin", "Phil", and "Tommy". Then copy the formula through the range C7:H12.
B4: Units Sold:
B6: Product/Month | C6: Jan | D6: Feb | E6: Mar | F6: Apr | G6: May | H6: Jun
B7: Quad
B8: Sunshine
B9: Aspen
B10: Yanaki
B11: Tri Fly
B12: Majestic Beaut

Sheet Sioux
B4: Units Sold:
B6: Product/Month | C6: Jan | D6: Feb | E6: Mar | F6: Apr | G6: May | H6: Jun
B7: Quad | C7: 594 | D7: 224 | E7: 345 | F7: 525 | G7: 514 | H7: 520
B8: Sunshine | C8: 379 | D8: 623 | E8: 471 | F8: 679 | G8: 736 | H8: 501
B9: Aspen | C9: 768 | D9: 352 | E9: 349 | F9: 554 | G9: 453 | H9: 404
B10: Yanaki | C10: 689 | D10: 725 | E10: 640 | F10: 380 | G10: 623 | H10: 310
B11: Tri Fly | C11: 679 | D11: 609 | E11: 482 | F11: 562 | G11: 220 | H11: 402
B12: Majestic Beaut | C12: 287 | D12: 521 | E12: 780 | F12: 505 | G12: 306 | H12: 713

Sheet Tyrone
B4: Units Sold:
B6: Product/Month | C6: Jan | D6: Feb | E6: Mar | F6: Apr | G6: May | H6: Jun
B7: Quad | C7: 319 | D7: 241 | E7: 518 | F7: 230 | G7: 256 | H7: 659
B8: Sunshine | C8: 659 | D8: 320 | E8: 491 | F8: 507 | G8: 551 | H8: 436
B9: Aspen | C9: 678 | D9: 214 | E9: 545 | F9: 297 | G9: 729 | H9: 729
B10: Yanaki | C10: 746 | D10: 635 | E10: 422 | F10: 256 | G10: 230 | H10: 624
B11: Tri Fly | C11: 238 | D11: 765 | E11: 296 | F11: 438 | G11: 538 | H11: 756
B12: Majestic Beaut | C12: 687 | D12: 334 | E12: 534 | F12: 233 | G12: 753 | H12: 646

Sheet Chin
B4: Units Sold:
B6: Product/Month | C6: Jan | D6: Feb | E6: Mar | F6: Apr | G6: May | H6: Jun
B7: Quad | C7: 711 | D7: 710 | E7: 767 | F7: 696 | G7: 647 | H7: 526
B8: Sunshine | C8: 405 | D8: 240 | E8: 256 | F8: 450 | G8: 263 | H8: 614
B9: Aspen | C9: 585 | D9: 784 | E9: 338 | F9: 776 | G9: 700 | H9: 450
B10: Yanaki | C10: 208 | D10: 759 | E10: 488 | F10: 693 | G10: 417 | H10: 204
B11: Tri Fly | C11: 638 | D11: 292 | E11: 274 | F11: 421 | G11: 521 | H11: 693
B12: Majestic Beaut | C12: 332 | D12: 289 | E12: 506 | F12: 239 | G12: 481 | H12: 406

Sheet Phil
B4: Units Sold:
B6: Product/Month | C6: Jan | D6: Feb | E6: Mar | F6: Apr | G6: May | H6: Jun
B7: Quad | C7: 303 | D7: 708 | E7: 616 | F7: 711 | G7: 613 | H7: 573
B8: Sunshine | C8: 471 | D8: 563 | E8: 275 | F8: 531 | G8: 209 | H8: 356
B9: Aspen | C9: 645 | D9: 271 | E9: 583 | F9: 415 | G9: 255 | H9: 516
B10: Yanaki | C10: 275 | D10: 386 | E10: 726 | F10: 336 | G10: 748 | H10: 288
B11: Tri Fly | C11: 388 | D11: 264 | E11: 340 | F11: 489 | G11: 247 | H11: 324
B12: Majestic Beaut | C12: 341 | D12: 380 | E12: 618 | F12: 254 | G12: 524 | H12: 681

Sheet Tommy
B4: Units Sold:
B6: Product/Month | C6: Jan | D6: Feb | E6: Mar | F6: Apr | G6: May | H6: Jun
B7: Quad | C7: 602 | D7: 230 | E7: 505 | F7: 425 | G7: 478 | H7: 735
B8: Sunshine | C8: 295 | D8: 751 | E8: 539 | F8: 423 | G8: 625 | H8: 202
B9: Aspen | C9: 513 | D9: 526 | E9: 452 | F9: 236 | G9: 585 | H9: 486
B10: Yanaki | C10: 535 | D10: 558 | E10: 496 | F10: 229 | G10: 346 | H10: 495
B11: Tri Fly | C11: 475 | D11: 644 | E11: 762 | F11: 263 | G11: 479 | H11: 273
B12: Majestic Beaut | C12: 431 | D12: 512 | E12: 209 | F12: 272 | G12: 220 | H12: 740

Sheet HW(9an)
A1: In the cell C7, create a formula with the SUM function and a 3-D Cell Reference that will add all the Units Sold for each Sales Rep
A2: from the Sheets named "Sioux", "Tyrone", "Chin", "Phil", and "Tommy". Then copy the formula through the range C7:H12.
B4: Units Sold:
B6: Product/Month | C6: Jan | D6: Feb | E6: Mar | F6: Apr | G6: May | H6: Jun
B7: Quad | C7: =SUM(Sioux:Tommy!C7) -> 2529 | D7: =SUM(Sioux:Tommy!D7) -> 2113 | E7: =SUM(Sioux:Tommy!E7) -> 2751 | F7: =SUM(Sioux:Tommy!F7) -> 2587 | G7: =SUM(Sioux:Tommy!G7) -> 2508 | H7: =SUM(Sioux:Tommy!H7) -> 3013
B8: Sunshine | C8: =SUM(Sioux:Tommy!C8) -> 2209 | D8: =SUM(Sioux:Tommy!D8) -> 2497 | E8: =SUM(Sioux:Tommy!E8) -> 2032 | F8: =SUM(Sioux:Tommy!F8) -> 2590 | G8: =SUM(Sioux:Tommy!G8) -> 2384 | H8: =SUM(Sioux:Tommy!H8) -> 2109
B9: Aspen | C9: =SUM(Sioux:Tommy!C9) -> 3189 | D9: =SUM(Sioux:Tommy!D9) -> 2147 | E9: =SUM(Sioux:Tommy!E9) -> 2267 | F9: =SUM(Sioux:Tommy!F9) -> 2278 | G9: =SUM(Sioux:Tommy!G9) -> 2722 | H9: =SUM(Sioux:Tommy!H9) -> 2585
B10: Yanaki | C10: =SUM(Sioux:Tommy!C10) -> 2453 | D10: =SUM(Sioux:Tommy!D10) -> 3063 | E10: =SUM(Sioux:Tommy!E10) -> 2772 | F10: =SUM(Sioux:Tommy!F10) -> 1894 | G10: =SUM(Sioux:Tommy!G10) -> 2364 | H10: =SUM(Sioux:Tommy!H10) -> 1921
B11: Tri Fly | C11: =SUM(Sioux:Tommy!C11) -> 2418 | D11: =SUM(Sioux:Tommy!D11) -> 2574 | E11: =SUM(Sioux:Tommy!E11) -> 2154 | F11: =SUM(Sioux:Tommy!F11) -> 2173 | G11: =SUM(Sioux:Tommy!G11) -> 2005 | H11: =SUM(Sioux:Tommy!H11) -> 2448
B12: Majestic Beaut | C12: =SUM(Sioux:Tommy!C12) -> 2078 | D12: =SUM(Sioux:Tommy!D12) -> 2036 | E12: =SUM(Sioux:Tommy!E12) -> 2647 | F12: =SUM(Sioux:Tommy!F12) -> 1503 | G12: =SUM(Sioux:Tommy!G12) -> 2284 | H12: =SUM(Sioux:Tommy!H12) -> 3186

Sheet HW(10)
A1: Create a formula in cell H5 that uses the SUMIFS function to add the Revenue with the two criteria SalesRep and Region, then copy the
A2: formula through the range H5:J9. The Data Set is an Excel Table with the name RevenueTable, so you will need to use Table
A5: Date | B5: SalesRep | C5: Region | D5: Product | E5: Revenue | G5: SalesRep/Region | H5: East | I5: MidWest | J5: West
A6: 2015-08-31 | B6: Colleen Warren | C6: West | D6: Quad | E6: 159.9 | G6: Colleen Warren
A7: 2016-11-27 | B7: Arturo Francis | C7: MidWest | D7: Sunshine | E7: 39.9 | G7: Arturo Francis
A8: 2015-11-07 | B8: Drew Rogers | C8: West | D8: Crested Beaut | E8: 75 | G8: Drew Rogers
A9: 2016-06-02 | B9: Drew Rogers | C9: MidWest | D9: Aspen | E9: 99 | G9: Christy Olson
A10: 2015-08-01 | B10: Christy Olson | C10: MidWest | D10: Quad | E10: 45.9 | G10: Rachel Gomez
A11: 2016-11-14 | B11: Rachel Gomez | C11: East | D11: Quad | E11: 28
A12: 2015-11-13 | B12: Arturo Francis | C12: MidWest | D12: Aspen | E12: 70.5
A13: 2016-11-04 | B13: Christy Olson | C13: West | D13: Sunshine | E13: 45.9
A14: 2015-09-01 | B14: Colleen Warren | C14: West | D14: Quad | E14: 188.68
A15: 2016-11-28 | B15: Arturo Francis | C15: MidWest | D15: Sunshine | E15: 39.1
A16: 2015-11-08 | B16: Drew Rogers | C16: West | D16: Crested Beaut | E16: 70.5
A17: 2016-06-03 | B17: Drew Rogers | C17: MidWest | D17: Aspen | E17: 113.85
A18: 2015-08-02 | B18: Christy Olson | C18: MidWest | D18: Quad | E18: 53.24
A19: 2016-11-15 | B19: Rachel Gomez | C19: East | D19: Quad | E19: 25.2
A20: 2015-11-14 | B20: Arturo Francis | C20: MidWest | D20: Aspen | E20: 86.72
A21: 2016-11-05 | B21: Christy Olson | C21: West | D21: Sunshine | E21: 46.82

Sheet HW(10an)
A1: Create a formula in cell H5 that uses the SUMIFS function to add the Revenue with the two criteria SalesRep and Region, then copy the
A2: formula through the range H5:J9. The Data Set is an Excel Table with the name RevenueTable, so you will need to use Table
A5: Date | B5: SalesRep | C5: Region | D5: Product | E5: Revenue | G5: SalesRep/Region | H5: East | I5: MidWest | J5: West
A6: 2015-08-31 | B6: Colleen Warren | C6: West | D6: Quad | E6: 159.9 | G6: Arturo Francis | H6: =SUMIFS(AnswerRevenueTable[[Revenue]:[Revenue]],AnswerRevenueTable[[SalesRep]:[SalesRep]],$G6,AnswerRevenueTable[[Region]:[Region]],H$5) -> 0 | I6: =SUMIFS(AnswerRevenueTable[[Revenue]:[Revenue]],AnswerRevenueTable[[SalesRep]:[SalesRep]],$G6,AnswerRevenueTable[[Region]:[Region]],I$5) -> 236.22 | J6: =SUMIFS(AnswerRevenueTable[[Revenue]:[Revenue]],AnswerRevenueTable[[SalesRep]:[SalesRep]],$G6,AnswerRevenueTable[[Region]:[Region]],J$5) -> 0
A7: 2016-11-27 | B7: Arturo Francis | C7: MidWest | D7: Sunshine | E7: 39.9 | G7: Christy Olson | H7: =SUMIFS(AnswerRevenueTable[[Revenue]:[Revenue]],AnswerRevenueTable[[SalesRep]:[SalesRep]],$G7,AnswerRevenueTable[[Region]:[Region]],H$5) -> 0 | I7: =SUMIFS(AnswerRevenueTable[[Revenue]:[Revenue]],AnswerRevenueTable[[SalesRep]:[SalesRep]],$G7,AnswerRevenueTable[[Region]:[Region]],I$5) -> 99.14 | J7: =SUMIFS(AnswerRevenueTable[[Revenue]:[Revenue]],AnswerRevenueTable[[SalesRep]:[SalesRep]],$G7,AnswerRevenueTable[[Region]:[Region]],J$5) -> 92.72
A8: 2015-11-07 | B8: Drew Rogers | C8: West | D8: Crested Beaut | E8: 75 | G8: Colleen Warren | H8: =SUMIFS(AnswerRevenueTable[[Revenue]:[Revenue]],AnswerRevenueTable[[SalesRep]:[SalesRep]],$G8,AnswerRevenueTable[[Region]:[Region]],H$5) -> 0 | I8: =SUMIFS(AnswerRevenueTable[[Revenue]:[Revenue]],AnswerRevenueTable[[SalesRep]:[SalesRep]],$G8,AnswerRevenueTable[[Region]:[Region]],I$5) -> 0 | J8: =SUMIFS(AnswerRevenueTable[[Revenue]:[Revenue]],AnswerRevenueTable[[SalesRep]:[SalesRep]],$G8,AnswerRevenueTable[[Region]:[Region]],J$5) -> 348.58
A9: 2016-06-02 | B9: Drew Rogers | C9: MidWest | D9: Aspen | E9: 99 | G9: Drew Rogers | H9: =SUMIFS(AnswerRevenueTable[[Revenue]:[Revenue]],AnswerRevenueTable[[SalesRep]:[SalesRep]],$G9,AnswerRevenueTable[[Region]:[Region]],H$5) -> 0 | I9: =SUMIFS(AnswerRevenueTable[[Revenue]:[Revenue]],AnswerRevenueTable[[SalesRep]:[SalesRep]],$G9,AnswerRevenueTable[[Region]:[Region]],I$5) -> 212.85 | J9: =SUMIFS(AnswerRevenueTable[[Revenue]:[Revenue]],AnswerRevenueTable[[SalesRep]:[SalesRep]],$G9,AnswerRevenueTable[[Region]:[Region]],J$5) -> 145.5
A10: 2015-08-01 | B10: Christy Olson | C10: MidWest | D10: Quad | E10: 45.9 | G10: Rachel Gomez | H10: =SUMIFS(AnswerRevenueTable[[Revenue]:[Revenue]],AnswerRevenueTable[[SalesRep]:[SalesRep]],$G10,AnswerRevenueTable[[Region]:[Region]],H$5) -> 53.2 | I10: =SUMIFS(AnswerRevenueTable[[Revenue]:[Revenue]],AnswerRevenueTable[[SalesRep]:[SalesRep]],$G10,AnswerRevenueTable[[Region]:[Region]],I$5) -> 0 | J10: =SUMIFS(AnswerRevenueTable[[Revenue]:[Revenue]],AnswerRevenueTable[[SalesRep]:[SalesRep]],$G10,AnswerRevenueTable[[Region]:[Region]],J$5) -> 0
A11: 2016-11-14 | B11: Rachel Gomez | C11: East | D11: Quad | E11: 28
A12: 2015-11-13 | B12: Arturo Francis | C12: MidWest | D12: Aspen | E12: 70.5 | G12: Check:
A13: 2016-11-04 | B13: Christy Olson | C13: West | D13: Sunshine | E13: 45.9
A14: 2015-09-01 | B14: Colleen Warren | C14: West | D14: Quad | E14: 188.68 | G14: Sum of Revenue | H14: Region
A15: 2016-11-28 | B15: Arturo Francis | C15: MidWest | D15: Sunshine | E15: 39.1 | G15: SalesRep | H15: East | I15: MidWest | J15: West | K15: Grand Total
A16: 2015-11-08 | B16: Drew Rogers | C16: West | D16: Crested Beaut | E16: 70.5 | G16: Arturo Francis | H16: 0 | I16: 236.22 | J16: 0 | K16: 236.22
A17: 2016-06-03 | B17: Drew Rogers | C17: MidWest | D17: Aspen | E17: 113.85 | G17: Christy Olson | H17: 0 | I17: 99.14 | J17: 92.72 | K17: 191.86
A18: 2015-08-02 | B18: Christy Olson | C18: MidWest | D18: Quad | E18: 53.24 | G18: Colleen Warren | H18: 0 | I18: 0 | J18: 348.58 | K18: 348.58
A19: 2016-11-15 | B19: Rachel Gomez | C19: East | D19: Quad | E19: 25.2 | G19: Drew Rogers | H19: 0 | I19: 212.85 | J19: 145.5 | K19: 358.35
A20: 2015-11-14 | B20: Arturo Francis | C20: MidWest | D20: Aspen | E20: 86.72 | G20: Rachel Gomez | H20: 53.2 | I20: 0 | J20: 0 | K20: 53.2
A21: 2016-11-05 | B21: Christy Olson | C21: West | D21: Sunshine | E21: 46.82 | G21: Grand Total | H21: 53.2 | I21: 548.21 | J21: 586.8 | K21: 1188.21

Sheet HW(11)
A1: Create a formula in cell A7 that that you can copy down and then over through the range A7:D10 that will list
A2: the top 4 Bowling Scores for each Bowler.
A3: Use the LARGE function to get and list the top 4 scores and in the k argument use a Formula "Number
A4: Incrementor" that will generate the numbers 1, 2, 3, 4 as the formula is copied down across the rows.
A5: For example, Chin's scores should be: in cell A10 = 299, in cell A11 = 298, in cell A12 = 265, in cell A13 = 255.
A9: Chin | B9: Sue | C9: Gigi | D9: Shela
A16: =A9&"'s Bowling Scores" -> Chin's Bowling Scores | B16: Sue's Bowling Scores | C16: Gigi's Bowling Scores | D16: Shela's Bowling Scores
A17: 157 | B17: 187 | C17: 274 | D17: 184
A18: 232 | B18: 228 | C18: 267 | D18: 268
A19: 231 | B19: 185 | C19: 282 | D19: 259
A20: 154 | B20: 224 | C20: 231 | D20: 253
A21: 149 | B21: 190 | C21: 160 | D21: 235
A22: 180 | B22: 170 | C22: 281 | D22: 297
A23: 177 | B23: 222 | C23: 292 | D23: 191
A24: 265 | B24: 156 | C24: 205 | D24: 272
A25: 208 | B25: 209 | C25: 284 | D25: 207
A26: 238 | B26: 262 | C26: 234 | D26: 295
A27: 178 | B27: 148 | C27: 234 | D27: 160
A28: 196 | B28: 242 | C28: 271 | D28: 221
A29: 219 | B29: 234 | C29: 200 | D29: 145
A30: 255 | B30: 296 | C30: 148 | D30: 300
A31: 298 | B31: 241 | C31: 223 | D31: 223
A32: 299 | B32: 148 | C32: 277 | D32: 222
A33: 206 | B33: 152 | C33: 162 | D33: 288

Sheet HW(11an)
A1: Create a formula in cell A7 that that you can copy down and then over through the range A7:D10 that will list
A2: the top 4 Bowling Scores for each Bowler.
A3: Use the LARGE function to get and list the top 4 scores and in the k argument use a Formula "Number
A4: Incrementor" that will generate the numbers 1, 2, 3, 4 as the formula is copied down across the rows.
A5: For example, Chin's scores should be: in cell A10 = 299, in cell A11 = 298, in cell A12 = 265, in cell A13 = 255.
A9: Chin | B9: Sue | C9: Gigi | D9: Shela
A10: =LARGE(A$17:A$33,ROWS(A$10:A10)) -> 299 | B10: =LARGE(B$17:B$33,ROWS(B$10:B10)) -> 296 | C10: =LARGE(C$17:C$33,ROWS(C$10:C10)) -> 292 | D10: =LARGE(D$17:D$33,ROWS(D$10:D10)) -> 300
A11: =LARGE(A$17:A$33,ROWS(A$10:A11)) -> 298 | B11: =LARGE(B$17:B$33,ROWS(B$10:B11)) -> 262 | C11: =LARGE(C$17:C$33,ROWS(C$10:C11)) -> 284 | D11: =LARGE(D$17:D$33,ROWS(D$10:D11)) -> 297
A12: =LARGE(A$17:A$33,ROWS(A$10:A12)) -> 265 | B12: =LARGE(B$17:B$33,ROWS(B$10:B12)) -> 242 | C12: =LARGE(C$17:C$33,ROWS(C$10:C12)) -> 282 | D12: =LARGE(D$17:D$33,ROWS(D$10:D12)) -> 295
A13: =LARGE(A$17:A$33,ROWS(A$10:A13)) -> 255 | B13: =LARGE(B$17:B$33,ROWS(B$10:B13)) -> 241 | C13: =LARGE(C$17:C$33,ROWS(C$10:C13)) -> 281 | D13: =LARGE(D$17:D$33,ROWS(D$10:D13)) -> 288
A16: =A9&"'s Bowling Scores" -> Chin's Bowling Scores | B16: Sue's Bowling Scores | C16: Gigi's Bowling Scores | D16: Shela's Bowling Scores
A17: 157 | B17: 187 | C17: 274 | D17: 184
A18: 232 | B18: 228 | C18: 267 | D18: 268
A19: 231 | B19: 185 | C19: 282 | D19: 259
A20: 154 | B20: 224 | C20: 231 | D20: 253
A21: 149 | B21: 190 | C21: 160 | D21: 235
A22: 180 | B22: 170 | C22: 281 | D22: 297
A23: 177 | B23: 222 | C23: 292 | D23: 191
A24: 265 | B24: 156 | C24: 205 | D24: 272
A25: 208 | B25: 209 | C25: 284 | D25: 207
A26: 238 | B26: 262 | C26: 234 | D26: 295
A27: 178 | B27: 148 | C27: 234 | D27: 160
A28: 196 | B28: 242 | C28: 271 | D28: 221
A29: 219 | B29: 234 | C29: 200 | D29: 145
A30: 255 | B30: 296 | C30: 148 | D30: 300
A31: 298 | B31: 241 | C31: 223 | D31: 223
A32: 299 | B32: 148 | C32: 277 | D32: 222
A33: 206 | B33: 152 | C33: 162 | D33: 288

Sheet HW(12)
A1: Convert the Data Set to an Excel Table and name it "GrossTable". Then add a field and name the field
A2: Deduction. Create a formula in the new field that multiplies Tax Rate times Gross Pay. Then add the Gross
A3: Pay column in the cell D6.
C6: Tax Rate | D6: 0.182
C7: Total Gross Pay
B9: Week | C9: SalesRep | D9: Gross Pay ($)
B10: Week 1 | C10: Colleen Warren | D10: 1119.87
B11: Week 1 | C11: Arturo Francis | D11: 866.73
B12: Week 1 | C12: Drew Rogers | D12: 883.26
B13: Week 1 | C13: Drew Rogers | D13: 686.61
B14: Week 1 | C14: Christy Olson | D14: 1061.02
B15: Week 1 | C15: Rachel Gomez | D15: 802.72
B16: Week 1 | C16: Arturo Francis | D16: 1048.75
B17: Week 1 | C17: Christy Olson | D17: 1134.62
B18: Week 2 | C18: Colleen Warren | D18: 1012.77
B19: Week 2 | C19: Arturo Francis | D19: 1169.62
B20: Week 2 | C20: Drew Rogers | D20: 736.02
B21: Week 2 | C21: Drew Rogers | D21: 997.28
B22: Week 2 | C22: Christy Olson | D22: 756.64
B23: Week 2 | C23: Rachel Gomez | D23: 929.78
B24: Week 2 | C24: Arturo Francis | D24: 1174.9
B25: Week 2 | C25: Christy Olson | D25: 969.78

Sheet HW(12an)
A1: Convert the Data Set to an Excel Table and name it "GrossTable". Then add a field and name the field
A2: Deduction. Create a formula in the new field that multiplies Tax Rate times Gross Pay. Then add the Gross
A3: Pay column in the cell D6.
C6: Tax Rate | D6: 0.182
C7: Total Gross Pay | D7: =SUM(AnswerGrossTable[Deduction ($)]) -> 2793.76
B9: Week | C9: SalesRep | D9: Gross Pay ($) | E9: Deduction ($)
B10: Week 1 | C10: Colleen Warren | D10: 1119.87 | E10: =ROUND(AnswerGrossTable[[#This Row],[Gross Pay ($)]]*$D$6,2) -> 203.82
B11: Week 1 | C11: Arturo Francis | D11: 866.73 | E11: =ROUND(AnswerGrossTable[[#This Row],[Gross Pay ($)]]*$D$6,2) -> 157.74
B12: Week 1 | C12: Drew Rogers | D12: 883.26 | E12: =ROUND(AnswerGrossTable[[#This Row],[Gross Pay ($)]]*$D$6,2) -> 160.75
B13: Week 1 | C13: Drew Rogers | D13: 686.61 | E13: =ROUND(AnswerGrossTable[[#This Row],[Gross Pay ($)]]*$D$6,2) -> 124.96
B14: Week 1 | C14: Christy Olson | D14: 1061.02 | E14: =ROUND(AnswerGrossTable[[#This Row],[Gross Pay ($)]]*$D$6,2) -> 193.11
B15: Week 1 | C15: Rachel Gomez | D15: 802.72 | E15: =ROUND(AnswerGrossTable[[#This Row],[Gross Pay ($)]]*$D$6,2) -> 146.1
B16: Week 1 | C16: Arturo Francis | D16: 1048.75 | E16: =ROUND(AnswerGrossTable[[#This Row],[Gross Pay ($)]]*$D$6,2) -> 190.87
B17: Week 1 | C17: Christy Olson | D17: 1134.62 | E17: =ROUND(AnswerGrossTable[[#This Row],[Gross Pay ($)]]*$D$6,2) -> 206.5
B18: Week 2 | C18: Colleen Warren | D18: 1012.77 | E18: =ROUND(AnswerGrossTable[[#This Row],[Gross Pay ($)]]*$D$6,2) -> 184.32
B19: Week 2 | C19: Arturo Francis | D19: 1169.62 | E19: =ROUND(AnswerGrossTable[[#This Row],[Gross Pay ($)]]*$D$6,2) -> 212.87
B20: Week 2 | C20: Drew Rogers | D20: 736.02 | E20: =ROUND(AnswerGrossTable[[#This Row],[Gross Pay ($)]]*$D$6,2) -> 133.96
B21: Week 2 | C21: Drew Rogers | D21: 997.28 | E21: =ROUND(AnswerGrossTable[[#This Row],[Gross Pay ($)]]*$D$6,2) -> 181.5
B22: Week 2 | C22: Christy Olson | D22: 756.64 | E22: =ROUND(AnswerGrossTable[[#This Row],[Gross Pay ($)]]*$D$6,2) -> 137.71
B23: Week 2 | C23: Rachel Gomez | D23: 929.78 | E23: =ROUND(AnswerGrossTable[[#This Row],[Gross Pay ($)]]*$D$6,2) -> 169.22
B24: Week 2 | C24: Arturo Francis | D24: 1174.9 | E24: =ROUND(AnswerGrossTable[[#This Row],[Gross Pay ($)]]*$D$6,2) -> 213.83
B25: Week 2 | C25: Christy Olson | D25: 969.78 | E25: =ROUND(AnswerGrossTable[[#This Row],[Gross Pay ($)]]*$D$6,2) -> 176.5

Sheet HW(13)
A1: In the range G7:H12 is a lookup table for product price. It is an Excel Table with the name PriceTable.
A2: For the Invoice add a Data Validation dropdown List in range A8:A14 based on the first column of the lookup table.
A3: For the Invoice add a VLOOKUP formula to get the price for each product that can be copied down the range C8:C14
A4: without yielding an NA error when there is no product selected in the first column of the Invoice.
A6: Invoice: 19045
A7: Product | B7: Units | C7: Price | D7: Total | G7: Product | H7: Price
A8: Yanaki | B8: 5 | D8: =IFERROR(ROUND(B8*C8,2),"") -> 0 | G8: Aspen | H8: 25.95
A9: Try Fly | B9: 25 | D9: =IFERROR(ROUND(B9*C9,2),"") -> 0 | G9: Yanaki | H9: 23.95
D10: =IFERROR(ROUND(B10*C10,2),"") -> 0 | G10: Try Fly | H10: 4.95
D11: 0 | G11: FastBoom | H11: 34
D12: 0 | G12: Long Rang | H12: 75
D13: 0
D14: =IFERROR(ROUND(B14*C14,2),"") -> 0
C15: Sub Total: | D15: =SUM(D8:D14) -> 0

Sheet HW(13an)
A1: In the range G7:H12 is a lookup table for product price. It is an Excel Table with the name PriceTable.
A2: For the Invoice add a Data Validation dropdown List in range A8:A14 based on the first column of the lookup table.
A3: For the Invoice add a VLOOKUP formula to get the price for each product that can be copied down the range C8:C14
A4: without yielding an NA error when there is no product selected in the first column of the Invoice.
A6: Invoice: 19045
A7: Product | B7: Units | C7: Price | D7: Total | G7: Product | H7: Price
A8: Yanaki | B8: 5 | C8: =_xlfn.IFNA(VLOOKUP(A8,AnswerPriceTable[],2,0),"") -> 23.95 | D8: =IFERROR(ROUND(B8*C8,2),"") -> 119.75 | G8: Aspen | H8: 25.95
A9: Try Fly | B9: 25 | C9: =_xlfn.IFNA(VLOOKUP(A9,AnswerPriceTable[],2,0),"") -> 4.95 | D9: =IFERROR(ROUND(B9*C9,2),"") -> 123.75 | G9: Yanaki | H9: 23.95
A10: Long Rang | B10: 2 | C10: =_xlfn.IFNA(VLOOKUP(A10,AnswerPriceTable[],2,0),"") -> 75 | D10: 150 | G10: Try Fly | H10: 4.95
A11: Yanaki | B11: 15 | C11: =_xlfn.IFNA(VLOOKUP(A11,AnswerPriceTable[],2,0),"") -> 23.95 | D11: 359.25 | G11: FastBoom | H11: 34
A12: Quad | B12: 24 | C12: =_xlfn.IFNA(VLOOKUP(A12,AnswerPriceTable[],2,0),"") -> 43 | D12: 1032 | G12: Long Rang | H12: 75
C13: =_xlfn.IFNA(VLOOKUP(A13,AnswerPriceTable[],2,0),"") ->  | G13: Quad | H13: 43
C14: =_xlfn.IFNA(VLOOKUP(A14,AnswerPriceTable[],2,0),"") ->  | D14: =IFERROR(ROUND(B14*C14,2),"") -> 
C15: Sub Total: | D15: =SUM(D8:D14) -> 1784.75
